bitfinex/quotes_SOLUSD_20240814
["timestamp","ask_amount","ask_price","bid_price","bid_amount"]
[1723638814513,1.443981,149.35,149.1,45.59]
[1723638814514,45.59,149.26,149.1,45.59]
[1723638814717,6.7016,149.22,149.1,45.59]
[1723638815019,45.12549,149.25,149.1,45.59]
[1723638815239,45.59,149.2,149.02,45.59]
[1723638815441,45.59,149.17,149.02,45.59]
[1723638815640,0.37647,149.16,149.02,45.59]
[1723638815827,6.7063,149.12,148.99,45.59]
[1723638816139,45.37647,149.16,149.02,45.59]
[1723638816347,0.12549,149.2,149.05,45.59]
[1723638816655,45.59,149.18,149.02,45.59]
[1723638816947,0.12549,149.19,148.99,45.59]
[1723638816948,6.7065,149.11,148.99,45.59]
[1723638817149,6.7065,149.11,148.96,52.2013]
[1723638817334,0.12549,149.14,148.96,52.2013]
[1723638817536,62.26546,149.14,148.96,52.2013]
[1723638817742,6.7078,149.08,148.96,52.2013]
[1723638818123,45.59,149.12,148.96,52.2013]
[1723638818330,45.59,149.09,148.93,45.59]
[1723638818532,0.12549,149.1,148.89,45.59]
[1723638818533,45.59,149.06,148.89,45.59]
[1723638818757,45.59,149.03,148.86,45.59]
[1723638818956,0.12549,148.99,148.8,6.1681]
[1723638819162,45.59,148.97,148.81,45.59]
[1723638819348,45.12549,148.96,148.81,45.59]
[1723638819666,6.7122,148.99,148.81,45.59]
[1723638819831,45.59,149.13,148.97,45.59]
[1723638820032,26.2648,149.22,148.9,20.0]
[1723638820231,26.2648,149.22,148.93,9.78383525]
[1723638820232,45.59,149.16,148.93,9.78383525]
[1723638820446,45.59,149.16,148.94,1.34147805]
[1723638820657,6.7055,149.13,148.94,11.1253133]
[1723638820950,6.7038,149.17,148.99,0.12549]
[1723638821257,16.2176,149.18,149.03,0.12549]
[1723638821559,45.59,149.13,149.03,0.12549]
[1723638821761,45.59,149.13,148.86,26.3991]
[1723638821762,45.59,149.05,148.82,1.53589187]
[1723638821941,45.59,149.01,148.85,45.59]
[1723638822133,45.59,148.98,148.82,45.59]
[1723638822327,16.0424,149.02,148.88,45.59]
[1723638823127,45.71549,149.01,148.85,45.59]
[1723638823334,45.59,149.01,148.85,45.59]
[1723638823641,52.301,149.01,148.85,45.59]
[1723638823847,16.0424,149.02,148.88,45.59]
[1723638824034,15.8777,149.11,148.91,45.59]
[1723638824237,6.7087,149.06,148.94,45.59]
[1723638824453,15.8777,149.11,148.95,1.34071011]
[1723638824632,15.8777,149.11,148.94,45.59]
[1723638824831,15.8777,149.11,148.97,45.59]
[1723638825036,15.8777,149.11,149.01,0.12549]
[1723638825236,45.59,149.2,149.04,0.12549]
[1723638825543,15.9983,149.21,149.09,45.59]
[1723638825851,15.9983,149.21,149.11,0.12549]
[1723638826036,15.5268,149.3,149.16,0.12549]
[1723638826240,22.2247,149.3,149.16,65.50196]
[1723638826462,15.5268,149.3,149.22,0.12549]
[1723638826759,15.5268,149.3,149.22,66.83967268]
[1723638827052,1.443981,149.35,149.29,45.59]
[1723638827253,26.83272,149.46,149.35,0.12549]
[1723638827632,26.83272,149.46,149.3,65.37647]
[1723638827633,6.6934,149.4,149.31,45.59]
[1723638827828,45.59,149.45,149.3,20.0]
[1723638828057,45.59,149.45,149.29,20.25098]
[1723638828230,6.6925,149.42,149.3,45.0]
[1723638828553,15.1444,149.46,149.38,0.12549]
[1723638828858,20.0,149.55,149.4,45.59]
[1723638829236,61.3724,149.56,149.4,45.59]
[1723638829237,6.689,149.5,149.4,45.59]
[1723638829431,6.689,149.5,149.27,20.0]
[1723638829432,6.6915,149.45,149.27,0.12549]
[1723638829632,62.3132,149.5,149.35,0.12549]
[1723638829852,20.0,149.48,149.31,45.59]
[1723638830045,20.0,149.43,149.25,20.0]
[1723638830260,65.59,149.44,149.25,45.59]
[1723638830438,36.7298,149.44,149.28,45.59]
[1723638830638,20.0,149.42,149.24,45.59]
[1723638830839,0.12549,149.38,149.24,45.59]
[1723638831040,45.50196,149.38,149.24,45.59]
[1723638831440,20.0,149.36,149.21,45.59]
[1723638831769,62.83196,149.35,149.18,45.59]
[1723638831975,45.59,149.32,149.15,51.7933]
[1723638832152,6.6988,149.29,149.15,51.7933]
[1723638832354,6.94888,149.31,149.18,45.59]
[1723638832555,15.5596,149.38,149.24,45.59]
[1723638833070,15.5596,149.38,149.27,45.59]
[1723638833268,15.5596,149.38,149.3,45.59]
[1723638833567,15.5596,149.38,149.27,45.59]
[1723638833747,6.6948,149.37,149.28,20.0]
[1723638834068,15.5596,149.38,149.25,20.0]
[1723638834474,0.12549,149.36,149.25,20.0]
[1723638834643,6.6961,149.34,149.25,20.0]
[1723638834844,51.82199,149.33,149.25,20.0]
[1723638835044,6.82159,149.34,149.25,20.0]
[1723638835239,0.12549,149.36,149.25,20.0]
[1723638835473,6.6947,149.37,149.25,20.0]
[1723638835645,15.5596,149.38,149.28,45.59]
[1723638835969,32.4248,149.49,149.33,45.59]
[1723638836157,16.7269,149.46,149.33,45.59]
[1723638836352,6.6921,149.43,149.33,45.59]
[1723638836680,16.7269,149.46,149.33,45.59]
[1723638836843,65.8712,149.49,149.34,0.12549]
[1723638837046,6.6916,149.44,149.34,0.12549]
[1723638837245,62.3167,149.47,149.3,45.59]
[1723638837557,62.3167,149.47,149.32,0.12549]
[1723638837770,6.6908,149.46,149.34,0.12549]
[1723638838074,6.6913,149.45,149.34,65.50196]
[1723638838270,20.0,149.48,149.31,0.12549]
[1723638838480,6.6952,149.36,149.25,45.59]
[1723638838650,6.6948,149.37,149.25,45.59]
[1723638838973,6.6997,149.26,149.09,20.0]
[1723638839176,6.701,149.23,149.15,45.59]
[1723638839350,6.6997,149.26,149.15,45.59]
[1723638839553,6.7002,149.25,149.15,45.59]
[1723638839868,20.12549,149.32,149.18,45.59]
[1723638840077,0.12549,149.3,149.18,45.59]
[1723638840257,45.37647,149.31,149.2,45.59]
[1723638840448,15.5983,149.33,149.2,45.59]
[1723638841397,22.2949,149.33,149.23,45.59]
[1723638841547,22.2949,149.33,149.21,20.0]
[1723638841548,6.697,149.32,149.22,0.25098]
[1723638841749,6.697,149.32,149.21,20.0]
[1723638841750,6.6979,149.3,149.21,20.0]
[1723638842053,45.59,149.32,149.18,20.0]
[1723638842356,62.3362,149.29,149.07,6.4004]
[1723638842563,6.7001,149.25,149.14,45.59]
[1723638842877,15.5983,149.33,149.23,45.59]
[1723638843657,45.59,149.39,149.24,20.0]
[1723638843884,45.59,149.39,149.25,0.12549]
[1723638844048,45.59,149.36,149.24,20.0]
[1723638844252,20.0,149.39,149.25,45.25098]
[1723638844253,45.59,149.39,149.25,45.25098]
[1723638844580,15.3919,149.42,149.26,45.84098]
[1723638844885,15.3919,149.42,149.28,0.12549]
[1723638845198,15.3919,149.42,149.3,0.12549]
[1723638845402,15.3919,149.42,149.32,45.59]
[1723638845695,15.3919,149.42,149.34,0.12549]
[1723638845897,15.3919,149.42,149.3,0.12549]
[1723638846064,6.6939,149.39,149.29,0.25098]
[1723638846265,6.6939,149.39,149.31,0.12549]
[1723638846499,22.0844,149.42,149.31,0.12549]
[1723638846669,15.3919,149.42,149.31,0.25098]
[1723638846868,15.3919,149.42,149.33,0.12549]
[1723638847088,6.6939,149.39,149.3,20.25098]
[1723638847276,6.6971,149.32,149.2,6.603]
[1723638847585,45.59,149.36,149.2,6.603]
[1723638847788,0.12549,149.36,149.21,45.59]
[1723638847995,6.6979,149.3,149.2,6.603]
[1723638848193,0.12549,149.29,149.17,45.59]
[1723638848396,45.0,149.29,149.17,45.59]
[1723638848689,45.0,149.29,149.14,45.59]
[1723638848913,6.7011,149.23,149.11,45.59]
[1723638849085,45.59,149.24,149.08,45.59]
[1723638849404,15.9048,149.27,149.11,45.59]
[1723638849607,15.9048,149.27,149.14,45.59]
[1723638849774,15.9048,149.27,149.11,45.59]
[1723638849775,6.7011,149.23,149.11,45.59]
[1723638850097,15.9048,149.27,149.11,45.59]
[1723638850286,15.9048,149.27,149.17,45.59]
[1723638850471,35.6474,149.36,149.17,45.59]
[1723638850667,6.6961,149.34,149.2,45.59]
[1723638850880,15.6474,149.36,149.23,45.59]
[1723638851268,6.6957,149.35,149.25,0.12549]
[1723638851469,15.6474,149.36,149.27,0.12549]
[1723638851771,15.6474,149.36,149.24,45.71549]
[1723638851971,15.6474,149.36,149.25,0.12549]
[1723638852298,15.6474,149.36,149.25,20.0]
[1723638852693,6.6966,149.33,149.22,6.413]
[1723638852896,6.6974,149.31,149.21,45.59]
[1723638853097,6.6988,149.28,149.15,6.0553]
[1723638853307,0.12549,149.32,149.15,6.0553]
[1723638853308,45.71549,149.3,149.15,6.0553]
[1723638853510,6.82249,149.32,149.17,45.59]
[1723638853788,45.0,149.31,149.2,45.59]
[1723638853998,6.82219,149.33,149.2,45.59]
[1723638854201,15.6474,149.36,149.23,45.59]
[1723638854425,15.6474,149.36,149.17,45.59]
[1723638854426,0.12549,149.35,149.2,45.59]
[1723638854715,0.25098,149.35,149.21,20.12549]
[1723638854914,0.25098,149.35,149.23,45.59]
[1723638855131,6.82119,149.35,149.24,20.0]
[1723638855419,15.6474,149.36,149.26,45.59]
[1723638855721,20.0,149.43,149.27,65.50196]
[1723638856522,16.733,149.41,149.26,45.59]
[1723638856820,16.733,149.41,149.25,0.12549]
[1723638856821,6.6957,149.35,149.25,0.12549]
[1723638857127,6.6957,149.35,149.25,65.37647]
[1723638857313,45.59,149.42,149.25,65.37647]
[1723638857621,20.0,149.43,149.29,0.12549]
[1723638857795,6.693,149.41,149.31,45.59]
[1723638857994,0.12549,149.42,149.31,45.59]
[1723638858392,6.6934,149.4,149.31,45.59]
[1723638858628,0.12549,149.39,149.31,45.59]
[1723638858797,6.6939,149.39,149.31,45.59]
[1723638858992,0.12549,149.4,149.31,52.0696]
[1723638859190,20.0,149.47,149.31,52.0696]
[1723638859191,1.16677725,149.49,149.37,45.59]
[1723638859413,45.59,149.53,149.4,45.59]
[1723638859614,6.6926,149.42,149.34,45.59]
[1723638859825,45.59,149.47,149.32,0.12549]
[1723638860017,45.59,149.5,149.32,65.37647]
[1723638860227,45.59,149.48,149.32,65.37647]
[1723638860405,6.6929,149.41,149.32,65.37647]
[1723638860606,45.59,149.45,149.31,52.0696]
[1723638860805,20.0,149.48,149.32,0.12549]
[1723638861028,16.7219,149.51,149.32,0.12549]
[1723638861029,6.6894,149.49,149.35,0.12549]
[1723638861317,6.6894,149.49,149.31,52.0696]
[1723638861318,45.59,149.47,149.31,52.0696]
[1723638861538,6.6907,149.46,149.32,0.12549]
[1723638861824,20.0,149.43,149.31,45.59]
[1723638862031,20.0,149.43,149.17,45.59]
[1723638862032,20.0,149.41,149.24,52.0502]
[1723638862230,45.59,149.37,149.21,45.59]
[1723638862430,15.62,149.4,149.27,45.59]
[1723638862609,45.12549,149.39,149.27,45.59]
[1723638863137,0.25098,149.38,149.27,45.59]
[1723638863510,0.25098,149.38,149.3,45.59]
[1723638863712,0.25098,149.38,149.27,45.59]
[1723638863713,0.12549,149.38,149.27,45.59]
[1723638864003,0.12549,149.38,149.24,45.59]
[1723638864004,0.12549,149.37,149.24,45.59]
[1723638864307,6.6952,149.36,149.24,45.59]
[1723638864524,45.0,149.35,149.24,45.59]
[1723638864706,0.12549,149.34,149.24,45.59]
[1723638864903,0.12549,149.38,149.27,45.59]
[1723638865215,15.62,149.4,149.27,45.59]
[1723638865529,22.3135,149.4,149.27,45.59]
[1723638865831,6.6944,149.38,149.28,20.0]
[1723638866028,6.695,149.37,149.24,45.59]
[1723638866232,6.6953,149.36,149.25,20.0]
[1723638866412,20.0,149.38,149.24,45.59]
[1723638866618,0.12549,149.36,149.24,45.59]
[1723638866930,0.12549,149.33,149.21,45.59]
[1723638867512,0.12549,149.36,149.24,45.59]
[1723638867727,0.12549,149.37,149.27,45.59]
[1723638867936,20.0,149.43,149.27,45.59]
[1723638868118,22.3138,149.4,149.27,45.59]
[1723638868438,22.3138,149.4,149.24,45.59]
[1723638868439,15.62,149.4,149.3,45.59]
[1723638868619,45.59,149.45,149.31,20.0]
[1723638868943,6.6926,149.42,149.31,20.0]
[1723638869110,6.6921,149.43,149.31,20.0]
[1723638869306,6.6925,149.43,149.31,20.0]
[1723638869615,20.0,149.4,149.25,0.12549]
[1723638869819,6.6943,149.39,149.25,65.37647]
[1723638870018,0.12549,149.39,149.25,65.37647]
[1723638870430,6.81969,149.39,149.25,20.12549]
[1723638870755,20.0,149.42,149.29,45.59]
[1723638871125,6.693,149.41,149.3,20.0]
[1723638871325,65.59,149.42,149.26,45.59]
[1723638871520,6.6943,149.38,149.23,45.59]
[1723638871750,52.2839,149.39,149.24,20.0]
[1723638871950,0.25098,149.38,149.26,45.59]
[1723638872260,6.82069,149.36,149.18,10.42651615]
[1723638872558,45.37647,149.35,149.25,45.59]
[1723638872734,45.0,149.35,149.28,45.59]
[1723638873252,0.25098,149.34,149.24,45.59]
[1723638873445,0.37647,149.34,149.25,20.0]
[1723638873938,65.59,149.42,149.26,0.12549]
[1723638874144,45.12549,149.41,149.26,0.25098]
[1723638874554,20.0,149.4,149.25,20.25098]
[1723638874752,51.81939,149.39,149.25,20.0]
[1723638875062,45.12549,149.39,149.26,0.12549]
[1723638875479,6.81969,149.39,149.25,20.0]
[1723638875683,45.12549,149.38,149.25,20.0]
[1723638875873,0.12549,149.37,149.25,20.0]
[1723638876072,0.12549,149.38,149.25,20.0]
[1723638876284,6.94478,149.39,149.25,20.0]
[1723638876486,45.0,149.38,149.25,20.0]
[1723638876686,0.50196,149.37,149.25,20.0]
[1723638877873,20.0,149.49,149.36,45.59]
[1723638878188,1.0889204,149.51,149.36,45.59]
[1723638878189,1.0889204,149.51,149.37,20.0]
[1723638878488,1.0889204,149.51,149.33,45.59]
[1723638878489,20.0,149.48,149.33,45.59]
[1723638878683,6.6912,149.45,149.34,20.0]
[1723638878864,21.9623,149.45,149.33,45.59]
[1723638879066,15.2711,149.45,149.33,45.59]
[1723638879290,21.9623,149.45,149.33,45.59]
[1723638879468,20.0,149.44,149.3,45.59]
[1723638879797,20.0,149.44,149.24,45.59]
[1723638879798,20.0,149.41,149.27,45.59]
[1723638880094,90.71549,149.43,149.27,45.59]
[1723638880095,26.6942,149.39,149.27,45.59]
[1723638880266,45.25098,149.4,149.27,45.59]
[1723638880267,45.25098,149.38,149.27,45.59]
[1723638880474,45.12549,149.38,149.27,45.59]
[1723638880790,0.37647,149.37,149.27,45.59]
[1723638881002,0.12549,149.36,149.27,45.59]
[1723638881565,6.82069,149.36,149.27,45.59]
[1723638881769,52.07217,149.35,149.24,45.59]
[1723638882066,0.12549,149.34,149.24,45.59]
[1723638882673,0.12549,149.34,149.17,45.59]
[1723638882674,0.12549,149.33,149.17,45.59]
[1723638882880,6.82239,149.33,149.17,45.59]
[1723638883196,15.47299,149.31,149.17,45.59]
[1723638883396,6.82429,149.28,149.14,45.59]
[1723638883599,0.12549,149.26,149.14,45.59]
[1723638883779,6.95078,149.26,149.1,45.59]
[1723638883980,6.7014,149.23,149.1,45.59]
[1723638884188,45.50196,149.22,149.1,45.59]
[1723638884397,45.50196,149.22,149.07,45.59]
[1723638884613,52.20386,149.22,149.07,45.59]
[1723638884782,45.50196,149.22,149.1,45.59]
[1723638885109,20.50196,149.22,149.07,45.59]
[1723638885323,0.12549,149.16,149.04,45.59]
[1723638885514,0.12549,149.14,149.04,45.59]
[1723638885808,6.706,149.12,149.01,45.59]
[1723638885974,6.706,149.12,148.98,45.59]
[1723638885975,45.37647,149.11,148.98,45.59]
[1723638886179,45.37647,149.11,149.02,7.00647875]
[1723638886412,0.12549,149.1,148.98,45.59]
[1723638886617,0.12549,149.06,148.95,0.1721514]
[1723638886822,15.4819,149.08,148.95,0.1721514]
[1723638886823,0.12549,149.04,148.95,0.1721514]
[1723638886977,0.12549,149.02,148.95,0.1721514]
[1723638887180,45.50196,149.02,148.95,0.1721514]
[1723638887488,0.12549,148.97,148.86,45.59]
[1723638887687,0.12549,148.96,148.82,45.59]
[1723638887894,0.25098,148.96,148.82,45.59]
[1723638888197,6.96458,148.95,148.82,45.59]
[1723638888514,45.25098,148.94,148.82,45.59]
[1723638888679,0.25098,148.93,148.82,45.59]
[1723638888875,0.12549,148.92,148.82,45.59]
[1723638889078,0.12549,148.91,148.79,45.59]
[1723638889400,0.25098,148.91,148.79,45.59]
[1723638889583,0.37647,148.9,148.79,45.59]
[1723638889778,45.0,148.91,148.79,45.59]
[1723638889999,0.25098,148.9,148.79,45.59]
[1723638890179,0.12549,148.89,148.76,45.59]
[1723638890410,0.12549,148.9,148.79,45.59]
[1723638890631,51.84139,148.9,148.79,45.59]
[1723638890840,0.12549,148.88,148.75,45.59]
[1723638891005,0.12549,148.88,148.73,1.2610718]
[1723638891207,0.12549,148.83,148.73,1.2610718]
[1723638891513,6.84469,148.83,148.73,1.2610718]
[1723638891720,45.37647,148.82,148.73,1.2610718]
[1723638892121,0.12549,148.81,148.73,1.2610718]
[1723638892434,45.0,148.81,148.73,1.2610718]
[1723638892606,0.37647,148.8,148.73,1.2610718]
[1723638893031,22.44959,148.79,148.65,45.59]
[1723638893240,0.25098,148.78,148.65,45.59]
[1723638893534,0.37647,148.78,148.68,45.59]
[1723638894333,0.25098,148.78,148.68,45.59]
[1723638894637,15.6032,148.79,148.68,45.59]
[1723638894935,0.37647,148.78,148.68,45.59]
[1723638895227,0.37647,148.78,148.61,56.01651615]
[1723638895228,0.37647,148.78,148.65,45.59]
[1723638895435,0.37647,148.78,148.66,20.0]
[1723638896022,15.6032,148.79,148.68,45.59]
[1723638896334,15.6032,148.79,148.78,6.7213]
[1723638896499,17.16002402,148.87,148.74,45.59]
[1723638896708,22.99164573,148.87,148.77,45.59]
[1723638896925,15.9911,148.87,148.8,45.59]
[1723638897129,20.0,149.05,148.75,110.84098]
[1723638897130,15.9911,148.96,148.83,45.59]
[1723638897327,15.9911,148.96,148.86,45.59]
[1723638897528,15.9911,148.96,148.87,20.0]
[1723638898033,15.9911,148.96,148.88,45.0]
[1723638898220,15.9911,148.96,148.87,20.0]
[1723638898414,15.9911,148.96,148.89,45.59]
[1723638898615,15.9911,148.96,148.92,45.59]
[1723638898827,6.99584498,149.04,148.93,45.37647]
[1723638899030,6.99584498,149.04,148.95,45.59]
[1723638899235,15.1497,149.05,148.96,20.12549]
[1723638899436,15.1497,149.05,148.96,65.12549]
[1723638899613,15.1497,149.05,148.98,45.59]
[1723638899821,15.1497,149.05,148.99,45.12549]
[1723638900037,6.99821757,149.1,148.99,0.12549]
[1723638900238,6.99821757,149.1,149.01,45.59]
[1723638900408,15.5546,149.14,149.04,45.59]
[1723638900611,15.5546,149.14,149.07,45.59]
[1723638900923,15.5546,149.14,149.08,20.0]
[1723638901233,15.5546,149.14,149.03,45.71549]
[1723638901433,15.5546,149.14,149.0,11.76769418]
[1723638901434,15.5546,149.14,149.0,45.71549]
[1723638901643,45.59,149.12,148.96,45.59]
[1723638901845,45.59,149.12,148.97,20.0]
[1723638902012,20.0,149.09,148.96,45.59]
[1723638902212,0.12549,149.06,148.89,45.59]
[1723638902515,6.7105,149.02,148.89,45.59]
[1723638902837,0.37647,149.03,148.89,45.59]
[1723638903047,0.12549,149.02,148.89,45.59]
[1723638903253,0.12549,148.95,148.82,45.59]
[1723638903412,0.12549,148.92,148.75,6.0454]
[1723638903612,45.59,148.97,148.79,45.59]
[1723638903835,45.59,148.97,148.82,45.59]
[1723638903836,0.12549,148.94,148.82,45.59]
[1723638904040,16.2551,148.98,148.88,45.59]
[1723638904244,0.12549,148.97,148.88,45.59]
[1723638904414,16.2551,148.98,148.91,45.59]
[1723638904609,0.25098,148.97,148.88,45.59]
[1723638904928,0.12549,148.97,148.88,45.59]
[1723638905113,0.12549,148.97,148.82,45.59]
[1723638905114,0.37647,148.97,148.82,45.59]
[1723638905320,0.12549,148.93,148.82,45.59]
[1723638905519,0.12549,148.93,148.75,51.6354]
[1723638905520,0.12549,148.92,148.79,45.59]
[1723638905821,0.50196,148.92,148.79,45.59]
[1723638906230,6.7156,148.91,148.79,45.59]
[1723638906435,0.12549,148.89,148.79,45.59]
[1723638906642,6.7168,148.88,148.76,45.59]
[1723638906819,0.50196,148.87,148.72,45.59]
[1723638907026,0.12549,148.85,148.72,45.59]
[1723638907220,0.50196,148.87,148.75,45.59]
[1723638907749,12.8594,148.89,148.78,45.59]
[1723638907950,46.09196,148.88,148.67,6.3968]
[1723638908157,0.12549,148.86,148.72,45.59]
[1723638908358,0.50196,148.86,148.75,45.59]
[1723638908647,0.50196,148.86,148.72,45.59]
[1723638908816,6.7186,148.84,148.72,45.59]
[1723638909021,0.37647,148.86,148.75,45.59]
[1723638909216,7.09437,148.86,148.75,45.59]
[1723638909424,0.12549,148.85,148.75,45.59]
[1723638909732,7.22056,148.85,148.75,45.59]
[1723638909929,0.12549,148.82,148.72,45.59]
[1723638910128,16.3478,148.87,148.75,45.59]
[1723638910517,0.12549,148.86,148.75,45.59]
[1723638910931,45.59,148.85,148.61,20.0]
[1723638911123,45.59,148.85,148.68,45.59]
[1723638911124,20.0,148.84,148.68,45.59]
[1723638911336,6.7206,148.8,148.68,45.59]
[1723638911545,0.37647,148.79,148.68,45.59]
[1723638912456,20.0,148.84,148.71,45.59]
[1723638912457,0.12549,148.84,148.71,45.59]
[1723638912634,0.12549,148.83,148.71,45.59]
[1723638912819,0.12549,148.82,148.69,0.12549]
[1723638913024,0.25098,148.82,148.72,0.12549]
[1723638913224,0.25098,148.82,148.72,20.12549]
[1723638913444,0.12549,148.82,148.72,20.12549]
[1723638913752,6.97048,148.82,148.72,20.0]
[1723638913929,0.12549,148.81,148.69,20.0]
[1723638914131,0.37647,148.81,148.69,20.0]
[1723638914325,6.84589,148.8,148.69,20.0]
[1723638914527,0.25098,148.79,148.69,20.0]
[1723638914848,7.00247024,148.85,148.69,20.0]
[1723638915050,0.12549,148.82,148.69,20.0]
[1723638915544,7.00247024,148.85,148.73,45.59]
[1723638915849,7.00247024,148.85,148.74,0.12549]
[1723638916054,7.00247024,148.85,148.77,0.12549]
[1723638916346,16.3478,148.87,148.77,65.0]
[1723638916526,16.3478,148.87,148.77,20.0]
[1723638916723,16.3478,148.87,148.8,0.12549]
[1723638917025,16.3478,148.87,148.8,20.12549]
[1723638917431,16.3478,148.87,148.76,0.12549]
[1723638917730,16.3478,148.87,148.76,65.50196]
[1723638918249,23.0652,148.87,148.76,65.12549]
[1723638918448,16.3478,148.87,148.68,45.59]
[1723638918628,0.25098,148.86,148.68,45.59]
[1723638918828,0.37647,148.86,148.68,45.59]
[1723638919045,16.3478,148.87,148.69,20.0]
[1723638919234,16.3478,148.87,148.76,0.12549]
[1723638919440,0.12549,148.86,148.68,45.59]
[1723638919748,6.7185,148.85,148.72,45.59]
[1723638919935,0.12549,148.86,148.72,45.59]
[1723638919936,0.12549,148.84,148.72,45.59]
[1723638920351,0.12549,148.86,148.72,45.59]
[1723638920548,6.7189,148.84,148.72,45.59]
[1723638920746,6.7189,148.84,148.68,45.59]
[1723638920747,0.25098,148.83,148.68,45.59]
[1723638921061,0.12549,148.85,148.72,45.59]
[1723638921238,0.50196,148.85,148.72,45.59]
[1723638921567,6.719,148.84,148.72,45.59]
[1723638921749,0.50196,148.85,148.68,45.59]
[1723638921750,0.12549,148.82,148.68,45.59]
[1723638922160,0.12549,148.8,148.68,45.59]
[1723638922464,0.12549,148.79,148.68,45.59]
[1723638922664,0.37647,148.79,148.65,45.59]
[1723638922846,6.7223,148.76,148.65,45.59]
[1723638923045,0.25098,148.77,148.65,45.59]
[1723638923244,0.37647,148.76,148.65,45.59]
[1723638923441,7.09737,148.79,148.65,45.59]
[1723638923673,0.12549,148.78,148.65,45.59]
[1723638923841,0.12549,148.77,148.65,45.59]
[1723638924044,6.7236,148.73,148.62,45.59]
[1723638924367,6.7254,148.69,148.51,10.64469906]
[1723638924545,15.3166,148.76,148.68,6.7257]
[1723638924743,0.12549,148.73,148.59,45.59]
[1723638924968,7.10017,148.73,148.67,6.7261]
[1723638925152,0.12549,148.73,148.65,45.59]
[1723638925360,15.3166,148.76,148.68,45.59]
[1723638925654,15.3166,148.76,148.69,1.34483923]
[1723638925863,15.3166,148.76,148.61,45.59]
[1723638925864,15.3166,148.76,148.65,45.59]
[1723638926066,15.3166,148.76,148.61,45.59]
[1723638926067,6.7232,148.74,148.61,45.59]
[1723638926361,15.3166,148.76,148.62,45.0]
[1723638926669,15.3166,148.76,148.63,20.0]
[1723638926840,0.12549,148.75,148.63,20.0]
[1723638927037,15.3166,148.76,148.63,20.0]
[1723638927038,15.3166,148.76,148.64,46.93373538]
[1723638927242,0.37647,148.75,148.65,65.0]
[1723638927470,0.12549,148.74,148.61,45.59]
[1723638927771,0.12549,148.72,148.58,45.59]
[1723638927955,0.50196,148.72,148.51,21.2610718]
[1723638928171,0.12549,148.7,148.61,45.59]
[1723638928358,0.50196,148.7,148.51,1.2610718]
[1723638928567,0.50196,148.7,148.54,46.166328]
[1723638928568,62.53019,148.68,148.54,46.166328]
[1723638928751,15.3254,148.63,148.54,0.576328]